Workbook

Sheet 個別サイト評価計算ツール
B2: 個別サイト評価計算ツール Ver.1.0 | L2: 計算実施日
E4: 評価対象地住所 | L4: 自然由来等土壌の搬出元の区域指定の整理番号
B6: サイト情報 | L6: 不飽和層内の濃度分布
C7: 不飽和層厚の情報
C8: 不飽和層厚 (m) | D8: 5
C10: 年間降水量の情報
C11: 年間降水量 (mm/年) | D11: 2700
C12: 年間浸透量 (mm/年) | D12: =計算!D25 -> 810
C13: 計算に使用する年間浸透量 (mm/年) | D13: =計算!D26 -> 800
C15: 分配係数の情報 | D15: =計算!D43 ->  | H15: ※評価対象物質のみ入力
C16: 特定有害物質 | D16: =D36 -> 砒素 | E16: ふっ素 | F16: ほう素 | G16: カドミウム | H16: セレン | I16: 六価クロム
C17: 分配係数 (L/kg) | D17: 20
C18: 分配係数ディフォルト値 (L/kg) | D18: 3 | E18: 0.6 | F18: 0.1 | G18: 100(pH5以上) 10(pH5未満) | H18: 5 | I18: 0.8
C20: 自然由来等土壌の汚染状態 | D20: =計算!D47 ->  | H20: ※評価対象物質のみ入力
C21: 特定有害物質 | D21: =D36 -> 砒素 | E21: =E36 -> ふっ素 | F21: ほう素 | G21: カドミウム | H21: セレン | I21: 六価クロム
C22: 自然由来等土壌の汚染状態 (mg/L) | D22: 0.026
D23: =計算!D51 -> 
B25: 汚染状態の判定結果
C26: 特定有害物質毎の許容濃度と汚染状態
C27: 特定有害物質 | D27: =D36 -> 砒素 | E27: =E36 -> ふっ素 | F27: ほう素 | G27: カドミウム | H27: セレン | I27: 六価クロム
C28: 許容濃度 (mg/L) | D28: =計算!D58 -> 0.15 | E28: =計算!E58 -> - | F28: =計算!F58 -> - | G28: =計算!G58 -> - | H28: =計算!H58 -> - | I28: =計算!I58 -> -
C29: 物質毎の汚染状態の判定結果 | D29: =計算!D63 -> クラス1-B | E29: =計算!E63 -> - | F29: =計算!F63 -> - | G29: =計算!G63 -> - | H29: =計算!H63 -> - | I29: =計算!I63 -> -
C31: 汚染状態の判定結果 | D31: =計算!D69 -> クラス1-B（遮水工等の措置を必要としない）
B34: 指定基準 2017年11月
C36: 物質 | D36: 砒素 | E36: ふっ素 | F36: ほう素 | G36: カドミウム | H36: セレン | I36: 六価クロム
C37: 土壌溶出量基準 (mg/L) | D37: 0.01 | E37: 0.8 | F37: 1 | G37: 0.01 | H37: 0.01 | I37: 0.05
C38: 第二溶出量基準 (mg/L) | D38: 0.3 | E38: 24 | F38: 30 | G38: 0.3 | H38: 0.3 | I38: 1.5

Sheet 計算 (hidden)
A1: (1) 活用土壌の許容濃度(基準の10倍値まで)、対象物質毎のクラス判定、サイトのクラス判定を計算するフロー
A3: 入力画面から | B3: 施工後の帯水層と活用土壌との距離 | C3: m | D3: =個別サイト評価計算ツール!D8 -> 5
B4: 降水量 | C4: mm/year | D4: =個別サイト評価計算ツール!D11 -> 2700
B5: 物質 | D5: =個別サイト評価計算ツール!D36 -> 砒素 | E5: =個別サイト評価計算ツール!E36 -> ふっ素 | F5: =個別サイト評価計算ツール!F36 -> ほう素 | G5: =個別サイト評価計算ツール!G36 -> カドミウム | H5: =個別サイト評価計算ツール!H36 -> セレン | I5: =個別サイト評価計算ツール!I36 -> 六価クロム
B6: 分配係数 | C6: L/kg | D6: =IF(個別サイト評価計算ツール!D17="","",個別サイト評価計算ツール!D17) -> 20 | E6: =IF(個別サイト評価計算ツール!E17="","",個別サイト評価計算ツール!E17) ->  | F6: =IF(個別サイト評価計算ツール!F17="","",個別サイト評価計算ツール!F17) ->  | G6: =IF(個別サイト評価計算ツール!G17="","",個別サイト評価計算ツール!G17) ->  | H6: =IF(個別サイト評価計算ツール!H17="","",個別サイト評価計算ツール!H17) ->  | I6: =IF(個別サイト評価計算ツール!I17="","",個別サイト評価計算ツール!I17) -> 
B7: 物質 | D7: =D5 -> 砒素 | E7: =E5 -> ふっ素 | F7: ほう素 | G7: カドミウム | H7: セレン | I7: 六価クロム
B8: 土壌溶出量試験の結果 | C8: mg/L | D8: =IF(個別サイト評価計算ツール!D22="","",個別サイト評価計算ツール!D22) -> 0.026 | E8: =IF(個別サイト評価計算ツール!E22="","",個別サイト評価計算ツール!E22) ->  | F8: =IF(個別サイト評価計算ツール!F22="","",個別サイト評価計算ツール!F22) ->  | G8: =IF(個別サイト評価計算ツール!G22="","",個別サイト評価計算ツール!G22) ->  | H8: =IF(個別サイト評価計算ツール!H22="","",個別サイト評価計算ツール!H22) ->  | I8: =IF(個別サイト評価計算ツール!I22="","",個別サイト評価計算ツール!I22) -> 
B9: 指定基準 2017/11
B10: 物質 | D10: =D5 -> 砒素 | E10: =E5 -> ふっ素 | F10: ほう素 | G10: カドミウム | H10: セレン | I10: 六価クロム
B11: 土壌溶出量基準 | C11: mg/L | D11: =個別サイト評価計算ツール!D37 -> 0.01 | E11: =個別サイト評価計算ツール!E37 -> 0.8 | F11: =個別サイト評価計算ツール!F37 -> 1 | G11: =個別サイト評価計算ツール!G37 -> 0.01 | H11: =個別サイト評価計算ツール!H37 -> 0.01 | I11: =個別サイト評価計算ツール!I37 -> 0.05
B12: 第2溶出量基準 | C12: mg/L | D12: =個別サイト評価計算ツール!D38 -> 0.3 | E12: =個別サイト評価計算ツール!E38 -> 24 | F12: =個別サイト評価計算ツール!F38 -> 30 | G12: =個別サイト評価計算ツール!G38 -> 0.3 | H12: =個別サイト評価計算ツール!H38 -> 0.3 | I12: =個別サイト評価計算ツール!I38 -> 1.5
D14: =D5 -> 砒素 | E14: =E5 -> ふっ素 | F14: ほう素 | G14: カドミウム | H14: セレン | I14: 六価クロム
A15: カドミウム以外は入出力画面から | B15: 分配係数ディフォルト値 （最小値） | C15: L/kg | D15: =個別サイト評価計算ツール!D18 -> 3 | E15: =個別サイト評価計算ツール!E18 -> 0.6 | F15: =個別サイト評価計算ツール!F18 -> 0.1 | G15: 17 | H15: =個別サイト評価計算ツール!H18 -> 5 | I15: =個別サイト評価計算ツール!I18 -> 0.8
D17: =D5 -> 砒素 | E17: =E5 -> ふっ素 | F17: ほう素 | G17: カドミウム | H17: セレン | I17: 六価クロム
A18: カドミウム以外は入出力画面から | B18: 入力可能な区域指定濃度下限値 | C18: mg/L | D18: =計算!D11 -> 0.01 | E18: =計算!E11 -> 0.8 | F18: =計算!F11 -> 1 | G18: 0.075 | H18: =計算!H11 -> 0.01 | I18: =計算!I11 -> 0.05
A20: 単位変換、パラメータの計算
B21: 分散長 | C21: m | D21: =D3*0.1 -> 0.5
B22: 液相率 | D22: 0.3
B23: 乾燥密度 | C23: kg/m3 | D23: 1500
B24: 浸透率 | D24: 0.3
A25: 出力へ | B25: 浸透量 | C25: mm/year | D25: =D4*D24 -> 810
A26: 出力へ | B26: 計算に使用する浸透量 | C26: mm/year | D26: =IF(D25>800,800,D25) -> 800
B27: 評価期間 | C27: year | D27: 100
B28: 流速v | C28: m/year | D28: =D26/1000/D22 -> 2.666666667 | E28: =計算に使用する浸透量(mm/year)/1000/theta
B29: 分散係数D | C29: m2/year | D29: =D21*D28 -> 1.333333333 | E29: =分散長×流速
B30: 物質 | D30: =D5 -> 砒素 | E30: =E5 -> ふっ素 | F30: ほう素 | G30: カドミウム | H30: セレン | I30: 六価クロム
B31: 分配係数Kd' | C31: m3/kg | D31: =D6/1000 -> 0.02 | E31: =E6/1000 -> 
B32: 遅延係数 | D32: =1+D31*$D$23/$D$22 -> 101 | E32: =1+E31*$D$23/$D$22 ->  | J32: '=1+Kd'×乾燥密度/液相率
A34: 100年後の不飽和層下端濃度 | D34: =D5 -> 砒素 | E34: =E5 -> ふっ素 | F34: ほう素 | G34: カドミウム | H34: セレン | I34: 六価クロム
B35: 相対濃度 | D35: =0.5*ERFC((D$32*$D3-$D$28*$D$27)/(SQRT(4*$D$29*D$32*$D$27)))+SQRT($D$28*$D$28*$D$27/(PI()*$D$29*D$32))*EXP(-(D$32*$D3-$D$28*$D$27)*(D$32*$D3-$D$28*$D$27)/(4*$D$29*D$32*$D$27))-0.5*(1+$D$28*$D3/$D$29+$D$28*$D$28*$D$27/$D$29/D$32)*EXP($D$28*$D3/$D$29)*ERFC((D$32*$D3+$D$28*$D$27)/(SQRT(4*$D$29*D$32*$D$27))) -> 0.06298657543 | E35: =0.5*ERFC((E$32*$D3-$D$28*$D$27)/(SQRT(4*$D$29*E$32*$D$27)))+SQRT($D$28*$D$28*$D$27/(PI()*$D$29*E$32))*EXP(-(E$32*$D3-$D$28*$D$27)*(E$32*$D3-$D$28*$D$27)/(4*$D$29*E$32*$D$27))-0.5*(1+$D$28*$D3/$D$29+$D$28*$D$28*$D$27/$D$29/E$32)*EXP($D$28*$D3/$D$29)*ERFC((E$32*$D3+$D$28*$D$27)/(SQRT(4*$D$29*E$32*$D$27))) ->  | F35: =0.5*ERFC((F$32*$D3-$D$28*$D$27)/(SQRT(4*$D$29*F$32*$D$27)))+SQRT($D$28*$D$28*$D$27/(PI()*$D$29*F$32))*EXP(-(F$32*$D3-$D$28*$D$27)*(F$32*$D3-$D$28*$D$27)/(4*$D$29*F$32*$D$27))-0.5*(1+$D$28*$D3/$D$29+$D$28*$D$28*$D$27/$D$29/F$32)*EXP($D$28*$D3/$D$29)*ERFC((F$32*$D3+$D$28*$D$27)/(SQRT(4*$D$29*F$32*$D$27))) ->  | I35: =0.5*ERFC((I$32*$D3-$D$28*$D$27)/(SQRT(4*$D$29*I$32*$D$27)))+SQRT($D$28*$D$28*$D$27/(PI()*$D$29*I$32))*EXP(-(I$32*$D3-$D$28*$D$27)*(I$32*$D3-$D$28*$D$27)/(4*$D$29*I$32*$D$27))-0.5*(1+$D$28*$D3/$D$29+$D$28*$D$28*$D$27/$D$29/I$32)*EXP($D$28*$D3/$D$29)*ERFC((I$32*$D3+$D$28*$D$27)/(SQRT(4*$D$29*I$32*$D$27))) ->  | J35: 1次元解析解で計算
B36: 相対濃度が0と計算された時の対策 | D36: =IF(D35<0.000001,0.000001,D35) -> 0.06298657543 | E36: =IF(E35<0.000001,0.000001,E35) ->  | J36: 相対濃度がほぼ0と計算された時は1e-6に置き換え
A38: 判定の要・不要 | D38: =D5 -> 砒素 | E38: =E5 -> ふっ素 | F38: ほう素 | G38: カドミウム | H38: セレン | I38: 六価クロム
B39: 判定の要不要 | D39: =NOT(OR(D6="",D8="")) -> TRUE | E39: =NOT(OR(E6="",E8="")) -> FALSE | F39: FALSE | G39: FALSE | H39: FALSE | I39: FALSE | J39: 分配係数と活用土壌の濃度情報のどちらかが空欄の時は判定が不要＝FALSE
A41: エラー表示 Kd | B41: 分配係数とディフォルト値の比較 | D41: =IF(0>D6,FALSE,TRUE) -> TRUE | E41: =IF(0>E6,FALSE,TRUE) -> TRUE | F41: TRUE | G41: TRUE | H41: TRUE | I41: =IF(0>I6,FALSE,TRUE) -> TRUE | J41: 分配係数が0より小さい時にFALSE（エラー）を返す
B42: サイトの汚染状態を出力するための計算 | D42: =AND(D41=TRUE,E41=TRUE,F41=TRUE,G41=TRUE,H41=TRUE,I41=TRUE) -> TRUE | J42: 1つ上の行に一つでもFALSEがあれば、FALSE（判定できない）を返す
A43: 出力へ | B43: エラー表示 | D43: =IF(D42=FALSE,$J43,"") ->  | J43: エラー：0より小さい値が入力されています。 | K43: 上の行がFALSEの時、エラー文章を返す
A45: エラー表示 区域指定濃度 | B45: 区域指定濃度と下限値の比較 | D45: =IF(D8>D11,TRUE,FALSE) -> TRUE | E45: =IF(E8>E11,TRUE,FALSE) -> TRUE | F45: TRUE | G45: TRUE | H45: TRUE | I45: TRUE | J45: 区域指定濃度が入力可能な濃度下限値より小さい時にFALSE（判定できない）を返す
B46: サイトの汚染状態を出力するための計算 | D46: =AND(D45=TRUE,E45=TRUE,F45=TRUE,G45=TRUE,H45=TRUE,I45=TRUE) -> TRUE | J46: 1つ上の行に一つでもFALSEがあれば、FALSE（判定できない）を返す
A47: 出力へ | B47: エラー表示 | D47: =IF(D46=FALSE,$J47,"") ->  | J47: エラー：土壌溶出量基準以下の値が入力されています。 | K47: 上の行がFALSEの時、エラー文章を返す
A49: エラー表示 区域指定濃度 | B49: 区域指定濃度と第2溶出量基準値の比較 | D49: =IF(OR(D12>=D8,D8=""),TRUE,FALSE) -> TRUE | E49: =IF(OR(E12>=E8,E8=""),TRUE,FALSE) -> TRUE | F49: TRUE | G49: TRUE | H49: TRUE | I49: TRUE | J49: 区域指定濃度が第二溶出量基準値より大きい時にFALSE（判定できない）を返す
B50: サイトの汚染状態を出力するための計算 | D50: =AND(D49=TRUE,E49=TRUE,F49=TRUE,G49=TRUE,H49=TRUE,I49=TRUE) -> TRUE | J50: 1つ上の行に一つでもFALSEがあれば、FALSE（判定できない）を返す
A51: 出力へ | B51: エラー表示 | D51: =IF(D50=FALSE,$J51,"") ->  | J51: エラー：第二溶出量基準より大きい値が入力されています。 | K51: 上の行がFALSEの時、エラー文章を返す
A53: 活用土壌の許容濃度 | D53: =D5 -> 砒素 | E53: ふっ素 | F53: ほう素 | G53: カドミウム | H53: セレン | I53: 六価クロム
B54: 許容濃度 | C54: mg/L | D54: =D11/D36 -> 0.1587639895 | E54: =E11/E36 ->  | J54: =基準値/相対濃度(相対濃度：基準値=1：許容濃度)
B55: 許容濃度 最大は第2溶出量基準 | C55: mg/L | D55: =IF(D54>D12,D12,D54) -> 0.1587639895 | E55: =IF(E54>E12,E12,E54) ->  | J55: 許容濃度の計算値が第二溶出量基準を超えていたら、第二溶出量基準値に置き換える
B56: 許容濃度 切り捨て | C56: mg/L | D56: =ROUNDDOWN(D55,-INT(LOG10(D55))+1) -> 0.15 | E56: =ROUNDDOWN(E55,-INT(LOG10(E55))+1) ->  | J56: 小数第3位を切り捨てる
B57: 表示条件を満たしているか | D57: =AND(D39,D41,D45,D49) -> TRUE | E57: =AND(E39,E41,E45,E49) -> FALSE | F57: FALSE | G57: FALSE | H57: FALSE | I57: =AND(I39,I41,I45,I49) -> FALSE | J57: 判定が必要で、かつ、分配係数、区域指定濃度の入力にエラーがある場合はFALSEを返す
A58: 出力へ | B58: 許容濃度 表示 | C58: mg/L | D58: =IF(D57=FALSE,"-",D56) -> 0.15 | E58: =IF(E57=FALSE,"-",E56) -> - | F58: - | G58: - | H58: - | I58: =IF(I57=FALSE,"-",I56) -> - | J58: 表示条件を満たしている場合(TRUE)に表示する内容
A61: 構造要件の判定 | D61: =D5 -> 砒素 | E61: ふっ素 | F61: ほう素 | G61: カドミウム | H61: セレン | I61: 六価クロム
B62: 対象物質毎 | D62: =IF(D56<D8,"クラス2","クラス1-B") -> クラス1-B | E62: =IF(E56<E8,"クラス2","クラス1-B") ->  | I62: =IF(I56<I8,"クラス2","クラス1-B") ->  | J62: 許容濃度と区域指定濃度を比較して判定する
A63: 出力へ | B63: 対象物質毎の構造要件の出力 | D63: =IF(D57=FALSE,"-",D62) -> クラス1-B | E63: =IF(E57=FALSE,"-",E62) -> - | F63: - | G63: - | H63: - | I63: - | J63: 試験結果が表示条件を満たしているときに表示する内容
B64: サイトの汚染状態を計算するための値 | D64: =IF(D63="クラス2",1,0) -> 0 | E64: =IF(E63="クラス2",1,0) -> 0 | F64: 0 | G64: 0 | H64: 0 | I64: 0
B65: サイト | D65: =IF(SUM(D64:J64)>0,"クラス2（遮水工等の措置が必要）","クラス1-B（遮水工等の措置を必要としない）") -> クラス1-B（遮水工等の措置を必要としない） | J65: 上の行に一つでも1があればクラス2
B66: サイトの汚染状態を出力するための計算 | D66: =OR(D39=TRUE,E39=TRUE,F39=TRUE,G39=TRUE,H39=TRUE,I39=TRUE) -> TRUE | J66: 判定の要不要に一つでも要があればTRUEを返す
B68: サイトの汚染状態の表示条件を満たしているか | D68: =AND(D66,D42,D46,D50) -> TRUE | J68: 汚染状態の判定(66行)がTRUEで、かつ、分配係数、区域指定濃度の入力全てにエラーがないときにTRUEを返す
A69: 出力へ | B69: サイトの汚染状態の表示 | D69: =IF(D68=FALSE,"-",D65) -> クラス1-B（遮水工等の措置を必要としない） | J69: サイトの汚染状態の出力、溶出量試験結果のどちらか一方がTrue(判定できない)のとき”－”を返す。
A72: (2) 濃度プロファイルを表示するためのフロー | D72: =D5 -> 砒素 | E72: ふっ素 | F72: ほう素 | G72: カドミウム | H72: セレン | I72: 六価クロム
B73: 距離(m) B | D73: =$D$3 -> 5 | E73: =$D$3 -> 5 | F73: 5 | G73: 5 | H73: 5 | I73: =$D$3 -> 5
A75: 100年後の不飽和層下端濃度 | B75: 濃度(mg/L) A (=相対濃度×土壌溶出量試験結果) | D75: =D35*D8 -> 1.64E-03
A76: 100年後の濃度が基準値以下となる深度を求める | B76: A<基準値の場合はB、A>基準値の場合は2*B | D76: =IF(D75<D$11,D73,ROUNDDOWN(2*D73,2)) -> 5 | E76: =IF(E75<E$11,E73,ROUNDDOWN(2*E73,2)) -> 
B77: ↑での分散係数 （固定値） | D77: =$D$29 -> 1.333333333 | E77: =$D$29 -> 1.333333333 | F77: 1.333333333 | G77: 1.333333333 | H77: 1.333333333 | I77: 1.333333333
B78: ↑での相対濃度 | D78: =0.5*ERFC((D$32*D76-$D$28*$D$27)/(SQRT(4*D77*D$32*$D$27)))+SQRT($D$28*$D$28*$D$27/(PI()*D77*D$32))*EXP(-(D$32*D76-$D$28*$D$27)*(D$32*D76-$D$28*$D$27)/(4*D77*D$32*$D$27))-0.5*(1+$D$28*D76/D77+$D$28*$D$28*$D$27/D77/D$32)*EXP($D$28*D76/D77)*ERFC((D$32*D76+$D$28*$D$27)/(SQRT(4*D77*D$32*$D$27))) -> 0.06298657543 | E78: =0.5*ERFC((E$32*E76-$D$28*$D$27)/(SQRT(4*E77*E$32*$D$27)))+SQRT($D$28*$D$28*$D$27/(PI()*E77*E$32))*EXP(-(E$32*E76-$D$28*$D$27)*(E$32*E76-$D$28*$D$27)/(4*E77*E$32*$D$27))-0.5*(1+$D$28*E76/E77+$D$28*$D$28*$D$27/E77/E$32)*EXP($D$28*E76/E77)*ERFC((E$32*E76+$D$28*$D$27)/(SQRT(4*E77*E$32*$D$27))) ->  | F78: =0.5*ERFC((F$32*F76-$D$28*$D$27)/(SQRT(4*F77*F$32*$D$27)))+SQRT($D$28*$D$28*$D$27/(PI()*F77*F$32))*EXP(-(F$32*F76-$D$28*$D$27)*(F$32*F76-$D$28*$D$27)/(4*F77*F$32*$D$27))-0.5*(1+$D$28*F76/F77+$D$28*$D$28*$D$27/F77/F$32)*EXP($D$28*F76/F77)*ERFC((F$32*F76+$D$28*$D$27)/(SQRT(4*F77*F$32*$D$27))) -> 
B79: 濃度 (mg/L) | D79: =D78*D$8 -> 0.001637650961 | E79: =E78*E$8 -> 
B80: A<基準値の場合はB、A>基準値の場合は2*B | D80: =IF(D79<D$11,D76,ROUNDDOWN(2*D76,2)) -> 5 | E80: =IF(E79<E$11,E76,ROUNDDOWN(2*E76,2)) -> 
B81: ↑での分散係数 （固定値） | D81: =$D$29 -> 1.333333333 | E81: =$D$29 -> 1.333333333 | F81: 1.333333333 | G81: 1.333333333 | H81: 1.333333333 | I81: 1.333333333
B82: ↑での相対濃度 | D82: =0.5*ERFC((D$32*D80-$D$28*$D$27)/(SQRT(4*D81*D$32*$D$27)))+SQRT($D$28*$D$28*$D$27/(PI()*D81*D$32))*EXP(-(D$32*D80-$D$28*$D$27)*(D$32*D80-$D$28*$D$27)/(4*D81*D$32*$D$27))-0.5*(1+$D$28*D80/D81+$D$28*$D$28*$D$27/D81/D$32)*EXP($D$28*D80/D81)*ERFC((D$32*D80+$D$28*$D$27)/(SQRT(4*D81*D$32*$D$27))) -> 0.06298657543 | E82: =0.5*ERFC((E$32*E80-$D$28*$D$27)/(SQRT(4*E81*E$32*$D$27)))+SQRT($D$28*$D$28*$D$27/(PI()*E81*E$32))*EXP(-(E$32*E80-$D$28*$D$27)*(E$32*E80-$D$28*$D$27)/(4*E81*E$32*$D$27))-0.5*(1+$D$28*E80/E81+$D$28*$D$28*$D$27/E81/E$32)*EXP($D$28*E80/E81)*ERFC((E$32*E80+$D$28*$D$27)/(SQRT(4*E81*E$32*$D$27))) ->  | F82: =0.5*ERFC((F$32*F80-$D$28*$D$27)/(SQRT(4*F81*F$32*$D$27)))+SQRT($D$28*$D$28*$D$27/(PI()*F81*F$32))*EXP(-(F$32*F80-$D$28*$D$27)*(F$32*F80-$D$28*$D$27)/(4*F81*F$32*$D$27))-0.5*(1+$D$28*F80/F81+$D$28*$D$28*$D$27/F81/F$32)*EXP($D$28*F80/F81)*ERFC((F$32*F80+$D$28*$D$27)/(SQRT(4*F81*F$32*$D$27))) -> 
B83: 濃度 (mg/L) | D83: =D82*D$8 -> 0.001637650961 | E83: =E82*E$8 -> 
B84: A<基準値の場合はB、A>基準値の場合は2*B | D84: =IF(D83<D$11,D80,ROUNDDOWN(2*D80,2)) -> 5 | E84: =IF(E83<E$11,E80,ROUNDDOWN(2*E80,2)) -> 
B85: ↑での分散係数 （固定値） | D85: =$D$29 -> 1.333333333 | E85: =$D$29 -> 1.333333333 | F85: 1.333333333 | G85: 1.333333333 | H85: 1.333333333 | I85: 1.333333333
B86: ↑での相対濃度 | D86: =0.5*ERFC((D$32*D84-$D$28*$D$27)/(SQRT(4*D85*D$32*$D$27)))+SQRT($D$28*$D$28*$D$27/(PI()*D85*D$32))*EXP(-(D$32*D84-$D$28*$D$27)*(D$32*D84-$D$28*$D$27)/(4*D85*D$32*$D$27))-0.5*(1+$D$28*D84/D85+$D$28*$D$28*$D$27/D85/D$32)*EXP($D$28*D84/D85)*ERFC((D$32*D84+$D$28*$D$27)/(SQRT(4*D85*D$32*$D$27))) -> 0.06298657543 | E86: =0.5*ERFC((E$32*E84-$D$28*$D$27)/(SQRT(4*E85*E$32*$D$27)))+SQRT($D$28*$D$28*$D$27/(PI()*E85*E$32))*EXP(-(E$32*E84-$D$28*$D$27)*(E$32*E84-$D$28*$D$27)/(4*E85*E$32*$D$27))-0.5*(1+$D$28*E84/E85+$D$28*$D$28*$D$27/E85/E$32)*EXP($D$28*E84/E85)*ERFC((E$32*E84+$D$28*$D$27)/(SQRT(4*E85*E$32*$D$27))) ->  | F86: =0.5*ERFC((F$32*F84-$D$28*$D$27)/(SQRT(4*F85*F$32*$D$27)))+SQRT($D$28*$D$28*$D$27/(PI()*F85*F$32))*EXP(-(F$32*F84-$D$28*$D$27)*(F$32*F84-$D$28*$D$27)/(4*F85*F$32*$D$27))-0.5*(1+$D$28*F84/F85+$D$28*$D$28*$D$27/F85/F$32)*EXP($D$28*F84/F85)*ERFC((F$32*F84+$D$28*$D$27)/(SQRT(4*F85*F$32*$D$27))) -> 
B87: 濃度 (mg/L) | D87: =D86*D$8 -> 0.001637650961 | E87: =E86*E$8 -> 
B88: A<基準値の場合はB、A>基準値の場合は2*B | D88: =IF(D87<D$11,D84,ROUNDDOWN(2*D84,2)) -> 5 | E88: =IF(E87<E$11,E84,ROUNDDOWN(2*E84,2)) -> 
B89: ↑での分散係数 （固定値） | D89: =$D$29 -> 1.333333333 | E89: =$D$29 -> 1.333333333 | F89: 1.333333333 | G89: 1.333333333 | H89: 1.333333333 | I89: 1.333333333
B90: ↑での相対濃度 | D90: =0.5*ERFC((D$32*D88-$D$28*$D$27)/(SQRT(4*D89*D$32*$D$27)))+SQRT($D$28*$D$28*$D$27/(PI()*D89*D$32))*EXP(-(D$32*D88-$D$28*$D$27)*(D$32*D88-$D$28*$D$27)/(4*D89*D$32*$D$27))-0.5*(1+$D$28*D88/D89+$D$28*$D$28*$D$27/D89/D$32)*EXP($D$28*D88/D89)*ERFC((D$32*D88+$D$28*$D$27)/(SQRT(4*D89*D$32*$D$27))) -> 0.06298657543 | E90: =0.5*ERFC((E$32*E88-$D$28*$D$27)/(SQRT(4*E89*E$32*$D$27)))+SQRT($D$28*$D$28*$D$27/(PI()*E89*E$32))*EXP(-(E$32*E88-$D$28*$D$27)*(E$32*E88-$D$28*$D$27)/(4*E89*E$32*$D$27))-0.5*(1+$D$28*E88/E89+$D$28*$D$28*$D$27/E89/E$32)*EXP($D$28*E88/E89)*ERFC((E$32*E88+$D$28*$D$27)/(SQRT(4*E89*E$32*$D$27))) ->  | F90: =0.5*ERFC((F$32*F88-$D$28*$D$27)/(SQRT(4*F89*F$32*$D$27)))+SQRT($D$28*$D$28*$D$27/(PI()*F89*F$32))*EXP(-(F$32*F88-$D$28*$D$27)*(F$32*F88-$D$28*$D$27)/(4*F89*F$32*$D$27))-0.5*(1+$D$28*F88/F89+$D$28*$D$28*$D$27/F89/F$32)*EXP($D$28*F88/F89)*ERFC((F$32*F88+$D$28*$D$27)/(SQRT(4*F89*F$32*$D$27))) -> 
B91: 濃度 (mg/L) | D91: =D90*D$8 -> 0.001637650961 | E91: =E90*E$8 -> 
B92: A<基準値の場合はB、A>基準値の場合は2*B | D92: =IF(D91<D$11,D88,ROUNDDOWN(2*D88,2)) -> 5 | E92: =IF(E91<E$11,E88,ROUNDDOWN(2*E88,2)) -> 
B93: ↑での分散係数 （固定値） | D93: =$D$29 -> 1.333333333 | E93: =$D$29 -> 1.333333333 | F93: 1.333333333 | G93: 1.333333333 | H93: 1.333333333 | I93: 1.333333333
B94: ↑での相対濃度 | D94: =0.5*ERFC((D$32*D92-$D$28*$D$27)/(SQRT(4*D93*D$32*$D$27)))+SQRT($D$28*$D$28*$D$27/(PI()*D93*D$32))*EXP(-(D$32*D92-$D$28*$D$27)*(D$32*D92-$D$28*$D$27)/(4*D93*D$32*$D$27))-0.5*(1+$D$28*D92/D93+$D$28*$D$28*$D$27/D93/D$32)*EXP($D$28*D92/D93)*ERFC((D$32*D92+$D$28*$D$27)/(SQRT(4*D93*D$32*$D$27))) -> 0.06298657543 | E94: =0.5*ERFC((E$32*E92-$D$28*$D$27)/(SQRT(4*E93*E$32*$D$27)))+SQRT($D$28*$D$28*$D$27/(PI()*E93*E$32))*EXP(-(E$32*E92-$D$28*$D$27)*(E$32*E92-$D$28*$D$27)/(4*E93*E$32*$D$27))-0.5*(1+$D$28*E92/E93+$D$28*$D$28*$D$27/E93/E$32)*EXP($D$28*E92/E93)*ERFC((E$32*E92+$D$28*$D$27)/(SQRT(4*E93*E$32*$D$27))) ->  | F94: =0.5*ERFC((F$32*F92-$D$28*$D$27)/(SQRT(4*F93*F$32*$D$27)))+SQRT($D$28*$D$28*$D$27/(PI()*F93*F$32))*EXP(-(F$32*F92-$D$28*$D$27)*(F$32*F92-$D$28*$D$27)/(4*F93*F$32*$D$27))-0.5*(1+$D$28*F92/F93+$D$28*$D$28*$D$27/F93/F$32)*EXP($D$28*F92/F93)*ERFC((F$32*F92+$D$28*$D$27)/(SQRT(4*F93*F$32*$D$27))) -> 
B95: 濃度 (mg/L) | D95: =D94*D$8 -> 0.001637650961 | E95: =E94*E$8 -> 
B96: A<基準値の場合はB、A>基準値の場合は2*B | D96: =IF(D95<D$11,D92,ROUNDDOWN(2*D92,2)) -> 5 | E96: =IF(E95<E$11,E92,ROUNDDOWN(2*E92,2)) -> 
B97: ↑での分散係数 （固定値） | D97: =$D$29 -> 1.333333333 | E97: =$D$29 -> 1.333333333 | F97: 1.333333333 | G97: 1.333333333 | H97: 1.333333333 | I97: 1.333333333
B98: ↑での相対濃度 | D98: =0.5*ERFC((D$32*D96-$D$28*$D$27)/(SQRT(4*D97*D$32*$D$27)))+SQRT($D$28*$D$28*$D$27/(PI()*D97*D$32))*EXP(-(D$32*D96-$D$28*$D$27)*(D$32*D96-$D$28*$D$27)/(4*D97*D$32*$D$27))-0.5*(1+$D$28*D96/D97+$D$28*$D$28*$D$27/D97/D$32)*EXP($D$28*D96/D97)*ERFC((D$32*D96+$D$28*$D$27)/(SQRT(4*D97*D$32*$D$27))) -> 0.06298657543 | E98: =0.5*ERFC((E$32*E96-$D$28*$D$27)/(SQRT(4*E97*E$32*$D$27)))+SQRT($D$28*$D$28*$D$27/(PI()*E97*E$32))*EXP(-(E$32*E96-$D$28*$D$27)*(E$32*E96-$D$28*$D$27)/(4*E97*E$32*$D$27))-0.5*(1+$D$28*E96/E97+$D$28*$D$28*$D$27/E97/E$32)*EXP($D$28*E96/E97)*ERFC((E$32*E96+$D$28*$D$27)/(SQRT(4*E97*E$32*$D$27))) ->  | F98: =0.5*ERFC((F$32*F96-$D$28*$D$27)/(SQRT(4*F97*F$32*$D$27)))+SQRT($D$28*$D$28*$D$27/(PI()*F97*F$32))*EXP(-(F$32*F96-$D$28*$D$27)*(F$32*F96-$D$28*$D$27)/(4*F97*F$32*$D$27))-0.5*(1+$D$28*F96/F97+$D$28*$D$28*$D$27/F97/F$32)*EXP($D$28*F96/F97)*ERFC((F$32*F96+$D$28*$D$27)/(SQRT(4*F97*F$32*$D$27))) -> 
B99: 濃度 (mg/L) | D99: =D98*D$8 -> 0.001637650961 | E99: =E98*E$8 -> 
B100: A<基準値の場合はB、A>基準値の場合は2*B | D100: =IF(D99<D$11,D96,ROUNDDOWN(2*D96,2)) -> 5 | E100: =IF(E99<E$11,E96,ROUNDDOWN(2*E96,2)) ->  | F100: =IF(F99<F$11,F96,ROUNDDOWN(2*F96,2)) -> 
B101: ↑での分散係数 （固定値） | D101: =$D$29 -> 1.333333333 | E101: =$D$29 -> 1.333333333 | F101: 1.333333333 | G101: 1.333333333 | H101: 1.333333333 | I101: 1.333333333
B102: ↑での相対濃度 | D102: =0.5*ERFC((D$32*D100-$D$28*$D$27)/(SQRT(4*D101*D$32*$D$27)))+SQRT($D$28*$D$28*$D$27/(PI()*D101*D$32))*EXP(-(D$32*D100-$D$28*$D$27)*(D$32*D100-$D$28*$D$27)/(4*D101*D$32*$D$27))-0.5*(1+$D$28*D100/D101+$D$28*$D$28*$D$27/D101/D$32)*EXP($D$28*D100/D101)*ERFC((D$32*D100+$D$28*$D$27)/(SQRT(4*D101*D$32*$D$27))) -> 0.06298657543 | E102: =0.5*ERFC((E$32*E100-$D$28*$D$27)/(SQRT(4*E101*E$32*$D$27)))+SQRT($D$28*$D$28*$D$27/(PI()*E101*E$32))*EXP(-(E$32*E100-$D$28*$D$27)*(E$32*E100-$D$28*$D$27)/(4*E101*E$32*$D$27))-0.5*(1+$D$28*E100/E101+$D$28*$D$28*$D$27/E101/E$32)*EXP($D$28*E100/E101)*ERFC((E$32*E100+$D$28*$D$27)/(SQRT(4*E101*E$32*$D$27))) ->  | F102: =0.5*ERFC((F$32*F100-$D$28*$D$27)/(SQRT(4*F101*F$32*$D$27)))+SQRT($D$28*$D$28*$D$27/(PI()*F101*F$32))*EXP(-(F$32*F100-$D$28*$D$27)*(F$32*F100-$D$28*$D$27)/(4*F101*F$32*$D$27))-0.5*(1+$D$28*F100/F101+$D$28*$D$28*$D$27/F101/F$32)*EXP($D$28*F100/F101)*ERFC((F$32*F100+$D$28*$D$27)/(SQRT(4*F101*F$32*$D$27))) -> 
B103: 濃度 (mg/L) | D103: =D102*D$8 -> 0.001637650961 | E103: =E102*E$8 ->  | F103: =F102*F$8 -> 
B104: A<基準値の場合はB、A>基準値の場合は2*B | D104: =IF(D103<D$11,D100,ROUNDDOWN(2*D100,2)) -> 5 | E104: =IF(E103<E$11,E100,ROUNDDOWN(2*E100,2)) -> 
B105: ↑での分散係数 （固定値） | D105: =$D$29 -> 1.333333333 | E105: =$D$29 -> 1.333333333 | F105: 1.333333333 | G105: 1.333333333 | H105: 1.333333333 | I105: 1.333333333
B106: ↑での相対濃度 | D106: =0.5*ERFC((D$32*D104-$D$28*$D$27)/(SQRT(4*D105*D$32*$D$27)))+SQRT($D$28*$D$28*$D$27/(PI()*D105*D$32))*EXP(-(D$32*D104-$D$28*$D$27)*(D$32*D104-$D$28*$D$27)/(4*D105*D$32*$D$27))-0.5*(1+$D$28*D104/D105+$D$28*$D$28*$D$27/D105/D$32)*EXP($D$28*D104/D105)*ERFC((D$32*D104+$D$28*$D$27)/(SQRT(4*D105*D$32*$D$27))) -> 0.06298657543 | E106: =0.5*ERFC((E$32*E104-$D$28*$D$27)/(SQRT(4*E105*E$32*$D$27)))+SQRT($D$28*$D$28*$D$27/(PI()*E105*E$32))*EXP(-(E$32*E104-$D$28*$D$27)*(E$32*E104-$D$28*$D$27)/(4*E105*E$32*$D$27))-0.5*(1+$D$28*E104/E105+$D$28*$D$28*$D$27/E105/E$32)*EXP($D$28*E104/E105)*ERFC((E$32*E104+$D$28*$D$27)/(SQRT(4*E105*E$32*$D$27))) ->  | F106: =0.5*ERFC((F$32*F104-$D$28*$D$27)/(SQRT(4*F105*F$32*$D$27)))+SQRT($D$28*$D$28*$D$27/(PI()*F105*F$32))*EXP(-(F$32*F104-$D$28*$D$27)*(F$32*F104-$D$28*$D$27)/(4*F105*F$32*$D$27))-0.5*(1+$D$28*F104/F105+$D$28*$D$28*$D$27/F105/F$32)*EXP($D$28*F104/F105)*ERFC((F$32*F104+$D$28*$D$27)/(SQRT(4*F105*F$32*$D$27))) -> 
B107: 濃度 (mg/L) | D107: =D106*D$8 -> 0.001637650961 | E107: =E106*E$8 ->  | F107: =F106*F$8 -> 
B108: A<基準値の場合はB、A>基準値の場合は2*B | D108: =IF(D107<D$11,D104,ROUNDDOWN(2*D104,2)) -> 5 | E108: =IF(E107<E$11,E104,ROUNDDOWN(2*E104,2)) -> 
B109: ↑での分散係数 （固定値） | D109: =$D$29 -> 1.333333333 | E109: =$D$29 -> 1.333333333 | F109: 1.333333333 | G109: 1.333333333 | H109: 1.333333333 | I109: 1.333333333
B110: ↑での相対濃度 | D110: =0.5*ERFC((D$32*D108-$D$28*$D$27)/(SQRT(4*D109*D$32*$D$27)))+SQRT($D$28*$D$28*$D$27/(PI()*D109*D$32))*EXP(-(D$32*D108-$D$28*$D$27)*(D$32*D108-$D$28*$D$27)/(4*D109*D$32*$D$27))-0.5*(1+$D$28*D108/D109+$D$28*$D$28*$D$27/D109/D$32)*EXP($D$28*D108/D109)*ERFC((D$32*D108+$D$28*$D$27)/(SQRT(4*D109*D$32*$D$27))) -> 0.06298657543 | E110: =0.5*ERFC((E$32*E108-$D$28*$D$27)/(SQRT(4*E109*E$32*$D$27)))+SQRT($D$28*$D$28*$D$27/(PI()*E109*E$32))*EXP(-(E$32*E108-$D$28*$D$27)*(E$32*E108-$D$28*$D$27)/(4*E109*E$32*$D$27))-0.5*(1+$D$28*E108/E109+$D$28*$D$28*$D$27/E109/E$32)*EXP($D$28*E108/E109)*ERFC((E$32*E108+$D$28*$D$27)/(SQRT(4*E109*E$32*$D$27))) ->  | F110: =0.5*ERFC((F$32*F108-$D$28*$D$27)/(SQRT(4*F109*F$32*$D$27)))+SQRT($D$28*$D$28*$D$27/(PI()*F109*F$32))*EXP(-(F$32*F108-$D$28*$D$27)*(F$32*F108-$D$28*$D$27)/(4*F109*F$32*$D$27))-0.5*(1+$D$28*F108/F109+$D$28*$D$28*$D$27/F109/F$32)*EXP($D$28*F108/F109)*ERFC((F$32*F108+$D$28*$D$27)/(SQRT(4*F109*F$32*$D$27))) -> 
B111: 濃度 (mg/L) | D111: =D110*D$8 -> 0.001637650961 | E111: =E110*E$8 ->  | F111: =F110*F$8 -> 
A114: 基準値になる距離の算出フロー | D114: =D5 -> 砒素 | E114: ふっ素 | F114: ほう素 | G114: カドミウム | H114: セレン | I114: 六価クロム
B115: 基準値に相当する相対濃度(=基準値/土壌溶出量試験結果) | D115: =D11/D8 -> 0.3846153846 | K115: =D5 -> 砒素 | L115: ふっ素 | M115: ほう素 | N115: カドミウム | O115: セレン | P115: 六価クロム
B116: x0 (m) | D116: =D108 -> 5 | E116: =E108 ->  | F116: =F108 ->  | J116: ←での相対濃度 | K116: =0.5*ERFC((D$32*D116-$D$28*$D$27)/(SQRT(4*D117*D$32*$D$27)))+SQRT($D$28*$D$28*$D$27/(PI()*D117*D$32))*EXP(-(D$32*D116-$D$28*$D$27)*(D$32*D116-$D$28*$D$27)/(4*D117*D$32*$D$27))-0.5*(1+$D$28*D116/D117+$D$28*$D$28*$D$27/D117/D$32)*EXP($D$28*D116/D117)*ERFC((D$32*D116+$D$28*$D$27)/(SQRT(4*D117*D$32*$D$27))) -> 0.06298657543 | L116: =0.5*ERFC((E$32*E116-$D$28*$D$27)/(SQRT(4*E117*E$32*$D$27)))+SQRT($D$28*$D$28*$D$27/(PI()*E117*E$32))*EXP(-(E$32*E116-$D$28*$D$27)*(E$32*E116-$D$28*$D$27)/(4*E117*E$32*$D$27))-0.5*(1+$D$28*E116/E117+$D$28*$D$28*$D$27/E117/E$32)*EXP($D$28*E116/E117)*ERFC((E$32*E116+$D$28*$D$27)/(SQRT(4*E117*E$32*$D$27))) -> 
B117: ↑での分散係数 （固定値） | D117: =$D$29 -> 1.333333333 | E117: =$D$29 -> 1.333333333 | F117: 1.333333333 | G117: 1.333333333 | H117: 1.333333333 | I117: 1.333333333
B118: x1 (m) | D118: =D116/2 -> 2.5 | J118: ←での相対濃度 | K118: =0.5*ERFC((D$32*D118-$D$28*$D$27)/(SQRT(4*D119*D$32*$D$27)))+SQRT($D$28*$D$28*$D$27/(PI()*D119*D$32))*EXP(-(D$32*D118-$D$28*$D$27)*(D$32*D118-$D$28*$D$27)/(4*D119*D$32*$D$27))-0.5*(1+$D$28*D118/D119+$D$28*$D$28*$D$27/D119/D$32)*EXP($D$28*D118/D119)*ERFC((D$32*D118+$D$28*$D$27)/(SQRT(4*D119*D$32*$D$27))) -> 0.5209569779 | L118: =0.5*ERFC((E$32*E118-$D$28*$D$27)/(SQRT(4*E119*E$32*$D$27)))+SQRT($D$28*$D$28*$D$27/(PI()*E119*E$32))*EXP(-(E$32*E118-$D$28*$D$27)*(E$32*E118-$D$28*$D$27)/(4*E119*E$32*$D$27))-0.5*(1+$D$28*E118/E119+$D$28*$D$28*$D$27/E119/E$32)*EXP($D$28*E118/E119)*ERFC((E$32*E118+$D$28*$D$27)/(SQRT(4*E119*E$32*$D$27))) -> 
B119: ↑での分散係数 （固定値） | D119: =$D$29 -> 1.333333333 | E119: 1.333333333 | F119: 1.333333333 | G119: 1.333333333 | H119: 1.333333333 | I119: 1.333333333
B120: x2 (m) | D120: =IF(K118<D$115,D118-ABS(D116-D118)/2,D118+ABS(D116-D118)/2) -> 3.75 | E120: =IF(L118<E$115,E118-ABS(E116-E118)/2,E118+ABS(E116-E118)/2) ->  | J120: ←での相対濃度 | K120: =0.5*ERFC((D$32*D120-$D$28*$D$27)/(SQRT(4*D121*D$32*$D$27)))+SQRT($D$28*$D$28*$D$27/(PI()*D121*D$32))*EXP(-(D$32*D120-$D$28*$D$27)*(D$32*D120-$D$28*$D$27)/(4*D121*D$32*$D$27))-0.5*(1+$D$28*D120/D121+$D$28*$D$28*$D$27/D121/D$32)*EXP($D$28*D120/D121)*ERFC((D$32*D120+$D$28*$D$27)/(SQRT(4*D121*D$32*$D$27))) -> 0.227842104 | L120: =0.5*ERFC((E$32*E120-$D$28*$D$27)/(SQRT(4*E121*E$32*$D$27)))+SQRT($D$28*$D$28*$D$27/(PI()*E121*E$32))*EXP(-(E$32*E120-$D$28*$D$27)*(E$32*E120-$D$28*$D$27)/(4*E121*E$32*$D$27))-0.5*(1+$D$28*E120/E121+$D$28*$D$28*$D$27/E121/E$32)*EXP($D$28*E120/E121)*ERFC((E$32*E120+$D$28*$D$27)/(SQRT(4*E121*E$32*$D$27))) -> 
B121: ↑での分散係数 （固定値） | D121: =$D$29 -> 1.333333333 | E121: 1.333333333 | F121: 1.333333333 | G121: 1.333333333 | H121: 1.333333333 | I121: 1.333333333
B122: x3 (m) | D122: =IF(K120<D$115,D120-ABS(D118-D120)/2,D120+ABS(D118-D120)/2) -> 3.125 | E122: =IF(L120<E$115,E120-ABS(E118-E120)/2,E120+ABS(E118-E120)/2) ->  | J122: ←での相対濃度 | K122: =0.5*ERFC((D$32*D122-$D$28*$D$27)/(SQRT(4*D123*D$32*$D$27)))+SQRT($D$28*$D$28*$D$27/(PI()*D123*D$32))*EXP(-(D$32*D122-$D$28*$D$27)*(D$32*D122-$D$28*$D$27)/(4*D123*D$32*$D$27))-0.5*(1+$D$28*D122/D123+$D$28*$D$28*$D$27/D123/D$32)*EXP($D$28*D122/D123)*ERFC((D$32*D122+$D$28*$D$27)/(SQRT(4*D123*D$32*$D$27))) -> 0.3634490164 | L122: =0.5*ERFC((E$32*E122-$D$28*$D$27)/(SQRT(4*E123*E$32*$D$27)))+SQRT($D$28*$D$28*$D$27/(PI()*E123*E$32))*EXP(-(E$32*E122-$D$28*$D$27)*(E$32*E122-$D$28*$D$27)/(4*E123*E$32*$D$27))-0.5*(1+$D$28*E122/E123+$D$28*$D$28*$D$27/E123/E$32)*EXP($D$28*E122/E123)*ERFC((E$32*E122+$D$28*$D$27)/(SQRT(4*E123*E$32*$D$27))) -> 
B123: ↑での分散係数 （固定値） | D123: =$D$29 -> 1.333333333 | E123: 1.333333333 | F123: 1.333333333 | G123: 1.333333333 | H123: 1.333333333 | I123: 1.333333333
B124: x4 (m) | D124: =IF(K122<D$115,D122-ABS(D120-D122)/2,D122+ABS(D120-D122)/2) -> 2.8125 | E124: =IF(L122<E$115,E122-ABS(E120-E122)/2,E122+ABS(E120-E122)/2) ->  | J124: ←での相対濃度 | K124: =0.5*ERFC((D$32*D124-$D$28*$D$27)/(SQRT(4*D125*D$32*$D$27)))+SQRT($D$28*$D$28*$D$27/(PI()*D125*D$32))*EXP(-(D$32*D124-$D$28*$D$27)*(D$32*D124-$D$28*$D$27)/(4*D125*D$32*$D$27))-0.5*(1+$D$28*D124/D125+$D$28*$D$28*$D$27/D125/D$32)*EXP($D$28*D124/D125)*ERFC((D$32*D124+$D$28*$D$27)/(SQRT(4*D125*D$32*$D$27))) -> 0.4407265632 | L124: =0.5*ERFC((E$32*E124-$D$28*$D$27)/(SQRT(4*E125*E$32*$D$27)))+SQRT($D$28*$D$28*$D$27/(PI()*E125*E$32))*EXP(-(E$32*E124-$D$28*$D$27)*(E$32*E124-$D$28*$D$27)/(4*E125*E$32*$D$27))-0.5*(1+$D$28*E124/E125+$D$28*$D$28*$D$27/E125/E$32)*EXP($D$28*E124/E125)*ERFC((E$32*E124+$D$28*$D$27)/(SQRT(4*E125*E$32*$D$27))) -> 
B125: ↑での分散係数 （固定値） | D125: =$D$29 -> 1.333333333 | E125: 1.333333333 | F125: 1.333333333 | G125: 1.333333333 | H125: 1.333333333 | I125: 1.333333333
B126: x5 (m) | D126: =IF(K124<D$115,D124-ABS(D122-D124)/2,D124+ABS(D122-D124)/2) -> 2.96875 | E126: =IF(L124<E$115,E124-ABS(E122-E124)/2,E124+ABS(E122-E124)/2) ->  | J126: ←での相対濃度 | K126: =0.5*ERFC((D$32*D126-$D$28*$D$27)/(SQRT(4*D127*D$32*$D$27)))+SQRT($D$28*$D$28*$D$27/(PI()*D127*D$32))*EXP(-(D$32*D126-$D$28*$D$27)*(D$32*D126-$D$28*$D$27)/(4*D127*D$32*$D$27))-0.5*(1+$D$28*D126/D127+$D$28*$D$28*$D$27/D127/D$32)*EXP($D$28*D126/D127)*ERFC((D$32*D126+$D$28*$D$27)/(SQRT(4*D127*D$32*$D$27))) -> 0.4015392738 | L126: =0.5*ERFC((E$32*E126-$D$28*$D$27)/(SQRT(4*E127*E$32*$D$27)))+SQRT($D$28*$D$28*$D$27/(PI()*E127*E$32))*EXP(-(E$32*E126-$D$28*$D$27)*(E$32*E126-$D$28*$D$27)/(4*E127*E$32*$D$27))-0.5*(1+$D$28*E126/E127+$D$28*$D$28*$D$27/E127/E$32)*EXP($D$28*E126/E127)*ERFC((E$32*E126+$D$28*$D$27)/(SQRT(4*E127*E$32*$D$27))) -> 
B127: ↑での分散係数 （固定値） | D127: =$D$29 -> 1.333333333 | E127: 1.333333333 | F127: 1.333333333 | G127: 1.333333333 | H127: 1.333333333 | I127: 1.333333333
B128: x6 (m) | D128: =IF(K126<D$115,D126-ABS(D124-D126)/2,D126+ABS(D124-D126)/2) -> 3.046875 | E128: =IF(L126<E$115,E126-ABS(E124-E126)/2,E126+ABS(E124-E126)/2) ->  | J128: ←での相対濃度 | K128: =0.5*ERFC((D$32*D128-$D$28*$D$27)/(SQRT(4*D129*D$32*$D$27)))+SQRT($D$28*$D$28*$D$27/(PI()*D129*D$32))*EXP(-(D$32*D128-$D$28*$D$27)*(D$32*D128-$D$28*$D$27)/(4*D129*D$32*$D$27))-0.5*(1+$D$28*D128/D129+$D$28*$D$28*$D$27/D129/D$32)*EXP($D$28*D128/D129)*ERFC((D$32*D128+$D$28*$D$27)/(SQRT(4*D129*D$32*$D$27))) -> 0.382336119 | L128: =0.5*ERFC((E$32*E128-$D$28*$D$27)/(SQRT(4*E129*E$32*$D$27)))+SQRT($D$28*$D$28*$D$27/(PI()*E129*E$32))*EXP(-(E$32*E128-$D$28*$D$27)*(E$32*E128-$D$28*$D$27)/(4*E129*E$32*$D$27))-0.5*(1+$D$28*E128/E129+$D$28*$D$28*$D$27/E129/E$32)*EXP($D$28*E128/E129)*ERFC((E$32*E128+$D$28*$D$27)/(SQRT(4*E129*E$32*$D$27))) -> 
B129: ↑での分散係数 （固定値） | D129: =$D$29 -> 1.333333333 | E129: 1.333333333 | F129: 1.333333333 | G129: 1.333333333 | H129: 1.333333333 | I129: 1.333333333
B130: x7 (m) | D130: =IF(K128<D$115,D128-ABS(D126-D128)/2,D128+ABS(D126-D128)/2) -> 3.0078125 | E130: =IF(L128<E$115,E128-ABS(E126-E128)/2,E128+ABS(E126-E128)/2) ->  | J130: ←での相対濃度 | K130: =0.5*ERFC((D$32*D130-$D$28*$D$27)/(SQRT(4*D131*D$32*$D$27)))+SQRT($D$28*$D$28*$D$27/(PI()*D131*D$32))*EXP(-(D$32*D130-$D$28*$D$27)*(D$32*D130-$D$28*$D$27)/(4*D131*D$32*$D$27))-0.5*(1+$D$28*D130/D131+$D$28*$D$28*$D$27/D131/D$32)*EXP($D$28*D130/D131)*ERFC((D$32*D130+$D$28*$D$27)/(SQRT(4*D131*D$32*$D$27))) -> 0.3919007197 | L130: =0.5*ERFC((E$32*E130-$D$28*$D$27)/(SQRT(4*E131*E$32*$D$27)))+SQRT($D$28*$D$28*$D$27/(PI()*E131*E$32))*EXP(-(E$32*E130-$D$28*$D$27)*(E$32*E130-$D$28*$D$27)/(4*E131*E$32*$D$27))-0.5*(1+$D$28*E130/E131+$D$28*$D$28*$D$27/E131/E$32)*EXP($D$28*E130/E131)*ERFC((E$32*E130+$D$28*$D$27)/(SQRT(4*E131*E$32*$D$27))) -> 
B131: ↑での分散係数 （固定値） | D131: =$D$29 -> 1.333333333 | E131: 1.333333333 | F131: 1.333333333 | G131: 1.333333333 | H131: 1.333333333 | I131: 1.333333333
B132: x8 (m) | D132: =IF(K130<D$115,D130-ABS(D128-D130)/2,D130+ABS(D128-D130)/2) -> 3.02734375 | E132: =IF(L130<E$115,E130-ABS(E128-E130)/2,E130+ABS(E128-E130)/2) ->  | J132: ←での相対濃度 | K132: =0.5*ERFC((D$32*D132-$D$28*$D$27)/(SQRT(4*D133*D$32*$D$27)))+SQRT($D$28*$D$28*$D$27/(PI()*D133*D$32))*EXP(-(D$32*D132-$D$28*$D$27)*(D$32*D132-$D$28*$D$27)/(4*D133*D$32*$D$27))-0.5*(1+$D$28*D132/D133+$D$28*$D$28*$D$27/D133/D$32)*EXP($D$28*D132/D133)*ERFC((D$32*D132+$D$28*$D$27)/(SQRT(4*D133*D$32*$D$27))) -> 0.3871088535 | L132: =0.5*ERFC((E$32*E132-$D$28*$D$27)/(SQRT(4*E133*E$32*$D$27)))+SQRT($D$28*$D$28*$D$27/(PI()*E133*E$32))*EXP(-(E$32*E132-$D$28*$D$27)*(E$32*E132-$D$28*$D$27)/(4*E133*E$32*$D$27))-0.5*(1+$D$28*E132/E133+$D$28*$D$28*$D$27/E133/E$32)*EXP($D$28*E132/E133)*ERFC((E$32*E132+$D$28*$D$27)/(SQRT(4*E133*E$32*$D$27))) -> 
B133: ↑での分散係数 （固定値） | D133: =$D$29 -> 1.333333333 | E133: 1.333333333 | F133: 1.333333333 | G133: 1.333333333 | H133: 1.333333333 | I133: 1.333333333
B134: x9 (m) | D134: =IF(K132<D$115,D132-ABS(D130-D132)/2,D132+ABS(D130-D132)/2) -> 3.037109375 | E134: =IF(L132<E$115,E132-ABS(E130-E132)/2,E132+ABS(E130-E132)/2) ->  | J134: ←での相対濃度 | K134: =0.5*ERFC((D$32*D134-$D$28*$D$27)/(SQRT(4*D135*D$32*$D$27)))+SQRT($D$28*$D$28*$D$27/(PI()*D135*D$32))*EXP(-(D$32*D134-$D$28*$D$27)*(D$32*D134-$D$28*$D$27)/(4*D135*D$32*$D$27))-0.5*(1+$D$28*D134/D135+$D$28*$D$28*$D$27/D135/D$32)*EXP($D$28*D134/D135)*ERFC((D$32*D134+$D$28*$D$27)/(SQRT(4*D135*D$32*$D$27))) -> 0.384720055 | L134: =0.5*ERFC((E$32*E134-$D$28*$D$27)/(SQRT(4*E135*E$32*$D$27)))+SQRT($D$28*$D$28*$D$27/(PI()*E135*E$32))*EXP(-(E$32*E134-$D$28*$D$27)*(E$32*E134-$D$28*$D$27)/(4*E135*E$32*$D$27))-0.5*(1+$D$28*E134/E135+$D$28*$D$28*$D$27/E135/E$32)*EXP($D$28*E134/E135)*ERFC((E$32*E134+$D$28*$D$27)/(SQRT(4*E135*E$32*$D$27))) -> 
B135: ↑での分散係数 （固定値） | D135: =$D$29 -> 1.333333333 | E135: 1.333333333 | F135: 1.333333333 | G135: 1.333333333 | H135: 1.333333333 | I135: 1.333333333
B136: x10 (m) | D136: =IF(K134<D$115,D134-ABS(D132-D134)/2,D134+ABS(D132-D134)/2) -> 3.041992188 | E136: =IF(L134<E$115,E134-ABS(E132-E134)/2,E134+ABS(E132-E134)/2) ->  | J136: ←での相対濃度 | K136: =0.5*ERFC((D$32*D136-$D$28*$D$27)/(SQRT(4*D137*D$32*$D$27)))+SQRT($D$28*$D$28*$D$27/(PI()*D137*D$32))*EXP(-(D$32*D136-$D$28*$D$27)*(D$32*D136-$D$28*$D$27)/(4*D137*D$32*$D$27))-0.5*(1+$D$28*D136/D137+$D$28*$D$28*$D$27/D137/D$32)*EXP($D$28*D136/D137)*ERFC((D$32*D136+$D$28*$D$27)/(SQRT(4*D137*D$32*$D$27))) -> 0.3835274743 | L136: =0.5*ERFC((E$32*E136-$D$28*$D$27)/(SQRT(4*E137*E$32*$D$27)))+SQRT($D$28*$D$28*$D$27/(PI()*E137*E$32))*EXP(-(E$32*E136-$D$28*$D$27)*(E$32*E136-$D$28*$D$27)/(4*E137*E$32*$D$27))-0.5*(1+$D$28*E136/E137+$D$28*$D$28*$D$27/E137/E$32)*EXP($D$28*E136/E137)*ERFC((E$32*E136+$D$28*$D$27)/(SQRT(4*E137*E$32*$D$27))) -> 
B137: ↑での分散係数 （固定値） | D137: =$D$29 -> 1.333333333 | E137: 1.333333333 | F137: 1.333333333 | G137: 1.333333333 | H137: 1.333333333 | I137: 1.333333333
B138: x11 (m) | D138: =IF(K136<D$115,D136-ABS(D134-D136)/2,D136+ABS(D134-D136)/2) -> 3.039550781 | E138: =IF(L136<E$115,E136-ABS(E134-E136)/2,E136+ABS(E134-E136)/2) ->  | J138: ←での相対濃度 | K138: =0.5*ERFC((D$32*D138-$D$28*$D$27)/(SQRT(4*D139*D$32*$D$27)))+SQRT($D$28*$D$28*$D$27/(PI()*D139*D$32))*EXP(-(D$32*D138-$D$28*$D$27)*(D$32*D138-$D$28*$D$27)/(4*D139*D$32*$D$27))-0.5*(1+$D$28*D138/D139+$D$28*$D$28*$D$27/D139/D$32)*EXP($D$28*D138/D139)*ERFC((D$32*D138+$D$28*$D$27)/(SQRT(4*D139*D$32*$D$27))) -> 0.3841236121 | L138: =0.5*ERFC((E$32*E138-$D$28*$D$27)/(SQRT(4*E139*E$32*$D$27)))+SQRT($D$28*$D$28*$D$27/(PI()*E139*E$32))*EXP(-(E$32*E138-$D$28*$D$27)*(E$32*E138-$D$28*$D$27)/(4*E139*E$32*$D$27))-0.5*(1+$D$28*E138/E139+$D$28*$D$28*$D$27/E139/E$32)*EXP($D$28*E138/E139)*ERFC((E$32*E138+$D$28*$D$27)/(SQRT(4*E139*E$32*$D$27))) -> 
B139: ↑での分散係数 （固定値） | D139: =$D$29 -> 1.333333333 | E139: 1.333333333 | F139: 1.333333333 | G139: 1.333333333 | H139: 1.333333333 | I139: 1.333333333
B140: x12 (m) | D140: =IF(K138<D$115,D138-ABS(D136-D138)/2,D138+ABS(D136-D138)/2) -> 3.038330078 | E140: =IF(L138<E$115,E138-ABS(E136-E138)/2,E138+ABS(E136-E138)/2) ->  | J140: ←での相対濃度 | K140: =0.5*ERFC((D$32*D140-$D$28*$D$27)/(SQRT(4*D141*D$32*$D$27)))+SQRT($D$28*$D$28*$D$27/(PI()*D141*D$32))*EXP(-(D$32*D140-$D$28*$D$27)*(D$32*D140-$D$28*$D$27)/(4*D141*D$32*$D$27))-0.5*(1+$D$28*D140/D141+$D$28*$D$28*$D$27/D141/D$32)*EXP($D$28*D140/D141)*ERFC((D$32*D140+$D$28*$D$27)/(SQRT(4*D141*D$32*$D$27))) -> 0.3844217955 | L140: =0.5*ERFC((E$32*E140-$D$28*$D$27)/(SQRT(4*E141*E$32*$D$27)))+SQRT($D$28*$D$28*$D$27/(PI()*E141*E$32))*EXP(-(E$32*E140-$D$28*$D$27)*(E$32*E140-$D$28*$D$27)/(4*E141*E$32*$D$27))-0.5*(1+$D$28*E140/E141+$D$28*$D$28*$D$27/E141/E$32)*EXP($D$28*E140/E141)*ERFC((E$32*E140+$D$28*$D$27)/(SQRT(4*E141*E$32*$D$27))) -> 
B141: ↑での分散係数 （固定値） | D141: =$D$29 -> 1.333333333 | E141: 1.333333333 | F141: 1.333333333 | G141: 1.333333333 | H141: 1.333333333 | I141: 1.333333333
B142: x13 (m) | D142: =IF(K140<D$115,D140-ABS(D138-D140)/2,D140+ABS(D138-D140)/2) -> 3.037719727 | E142: =IF(L140<E$115,E140-ABS(E138-E140)/2,E140+ABS(E138-E140)/2) ->  | J142: ←での相対濃度 | K142: =0.5*ERFC((D$32*D142-$D$28*$D$27)/(SQRT(4*D143*D$32*$D$27)))+SQRT($D$28*$D$28*$D$27/(PI()*D143*D$32))*EXP(-(D$32*D142-$D$28*$D$27)*(D$32*D142-$D$28*$D$27)/(4*D143*D$32*$D$27))-0.5*(1+$D$28*D142/D143+$D$28*$D$28*$D$27/D143/D$32)*EXP($D$28*D142/D143)*ERFC((D$32*D142+$D$28*$D$27)/(SQRT(4*D143*D$32*$D$27))) -> 0.3845709157 | L142: =0.5*ERFC((E$32*E142-$D$28*$D$27)/(SQRT(4*E143*E$32*$D$27)))+SQRT($D$28*$D$28*$D$27/(PI()*E143*E$32))*EXP(-(E$32*E142-$D$28*$D$27)*(E$32*E142-$D$28*$D$27)/(4*E143*E$32*$D$27))-0.5*(1+$D$28*E142/E143+$D$28*$D$28*$D$27/E143/E$32)*EXP($D$28*E142/E143)*ERFC((E$32*E142+$D$28*$D$27)/(SQRT(4*E143*E$32*$D$27))) -> 
B143: ↑での分散係数 （固定値） | D143: =$D$29 -> 1.333333333 | E143: 1.333333333 | F143: 1.333333333 | G143: 1.333333333 | H143: 1.333333333 | I143: 1.333333333
B144: x14 (m) | D144: =IF(K142<D$115,D142-ABS(D140-D142)/2,D142+ABS(D140-D142)/2) -> 3.037414551 | E144: =IF(L142<E$115,E142-ABS(E140-E142)/2,E142+ABS(E140-E142)/2) ->  | J144: ←での相対濃度 | K144: =0.5*ERFC((D$32*D144-$D$28*$D$27)/(SQRT(4*D145*D$32*$D$27)))+SQRT($D$28*$D$28*$D$27/(PI()*D145*D$32))*EXP(-(D$32*D144-$D$28*$D$27)*(D$32*D144-$D$28*$D$27)/(4*D145*D$32*$D$27))-0.5*(1+$D$28*D144/D145+$D$28*$D$28*$D$27/D145/D$32)*EXP($D$28*D144/D145)*ERFC((D$32*D144+$D$28*$D$27)/(SQRT(4*D145*D$32*$D$27))) -> 0.384645483 | L144: =0.5*ERFC((E$32*E144-$D$28*$D$27)/(SQRT(4*E145*E$32*$D$27)))+SQRT($D$28*$D$28*$D$27/(PI()*E145*E$32))*EXP(-(E$32*E144-$D$28*$D$27)*(E$32*E144-$D$28*$D$27)/(4*E145*E$32*$D$27))-0.5*(1+$D$28*E144/E145+$D$28*$D$28*$D$27/E145/E$32)*EXP($D$28*E144/E145)*ERFC((E$32*E144+$D$28*$D$27)/(SQRT(4*E145*E$32*$D$27))) -> 
B145: ↑での分散係数 （固定値） | D145: =$D$29 -> 1.333333333 | E145: 1.333333333 | F145: 1.333333333 | G145: 1.333333333 | H145: 1.333333333 | I145: 1.333333333
B146: x15 (m) | D146: =IF(K144<D$115,D144-ABS(D142-D144)/2,D144+ABS(D142-D144)/2) -> 3.037567139 | E146: =IF(L144<E$115,E144-ABS(E142-E144)/2,E144+ABS(E142-E144)/2) ->  | J146: ←での相対濃度 | K146: =0.5*ERFC((D$32*D146-$D$28*$D$27)/(SQRT(4*D147*D$32*$D$27)))+SQRT($D$28*$D$28*$D$27/(PI()*D147*D$32))*EXP(-(D$32*D146-$D$28*$D$27)*(D$32*D146-$D$28*$D$27)/(4*D147*D$32*$D$27))-0.5*(1+$D$28*D146/D147+$D$28*$D$28*$D$27/D147/D$32)*EXP($D$28*D146/D147)*ERFC((D$32*D146+$D$28*$D$27)/(SQRT(4*D147*D$32*$D$27))) -> 0.3846081988 | L146: =0.5*ERFC((E$32*E146-$D$28*$D$27)/(SQRT(4*E147*E$32*$D$27)))+SQRT($D$28*$D$28*$D$27/(PI()*E147*E$32))*EXP(-(E$32*E146-$D$28*$D$27)*(E$32*E146-$D$28*$D$27)/(4*E147*E$32*$D$27))-0.5*(1+$D$28*E146/E147+$D$28*$D$28*$D$27/E147/E$32)*EXP($D$28*E146/E147)*ERFC((E$32*E146+$D$28*$D$27)/(SQRT(4*E147*E$32*$D$27))) -> 
B147: ↑での分散係数 （固定値） | D147: =$D$29 -> 1.333333333 | E147: 1.333333333 | F147: 1.333333333 | G147: 1.333333333 | H147: 1.333333333 | I147: 1.333333333
B148: x16 (m) | D148: =IF(K146<D$115,D146-ABS(D144-D146)/2,D146+ABS(D144-D146)/2) -> 3.037490845 | E148: =IF(L146<E$115,E146-ABS(E144-E146)/2,E146+ABS(E144-E146)/2) ->  | J148: ←での相対濃度 | K148: =0.5*ERFC((D$32*D148-$D$28*$D$27)/(SQRT(4*D149*D$32*$D$27)))+SQRT($D$28*$D$28*$D$27/(PI()*D149*D$32))*EXP(-(D$32*D148-$D$28*$D$27)*(D$32*D148-$D$28*$D$27)/(4*D149*D$32*$D$27))-0.5*(1+$D$28*D148/D149+$D$28*$D$28*$D$27/D149/D$32)*EXP($D$28*D148/D149)*ERFC((D$32*D148+$D$28*$D$27)/(SQRT(4*D149*D$32*$D$27))) -> 0.3846268407 | L148: =0.5*ERFC((E$32*E148-$D$28*$D$27)/(SQRT(4*E149*E$32*$D$27)))+SQRT($D$28*$D$28*$D$27/(PI()*E149*E$32))*EXP(-(E$32*E148-$D$28*$D$27)*(E$32*E148-$D$28*$D$27)/(4*E149*E$32*$D$27))-0.5*(1+$D$28*E148/E149+$D$28*$D$28*$D$27/E149/E$32)*EXP($D$28*E148/E149)*ERFC((E$32*E148+$D$28*$D$27)/(SQRT(4*E149*E$32*$D$27))) -> 
B149: ↑での分散係数 （固定値） | D149: =$D$29 -> 1.333333333 | E149: 1.333333333 | F149: 1.333333333 | G149: 1.333333333 | H149: 1.333333333 | I149: 1.333333333
B150: x17 (m) | D150: =IF(K148<D$115,D148-ABS(D146-D148)/2,D148+ABS(D146-D148)/2) -> 3.037528992 | E150: =IF(L148<E$115,E148-ABS(E146-E148)/2,E148+ABS(E146-E148)/2) ->  | J150: ←での相対濃度 | K150: =0.5*ERFC((D$32*D150-$D$28*$D$27)/(SQRT(4*D151*D$32*$D$27)))+SQRT($D$28*$D$28*$D$27/(PI()*D151*D$32))*EXP(-(D$32*D150-$D$28*$D$27)*(D$32*D150-$D$28*$D$27)/(4*D151*D$32*$D$27))-0.5*(1+$D$28*D150/D151+$D$28*$D$28*$D$27/D151/D$32)*EXP($D$28*D150/D151)*ERFC((D$32*D150+$D$28*$D$27)/(SQRT(4*D151*D$32*$D$27))) -> 0.3846175197 | L150: =0.5*ERFC((E$32*E150-$D$28*$D$27)/(SQRT(4*E151*E$32*$D$27)))+SQRT($D$28*$D$28*$D$27/(PI()*E151*E$32))*EXP(-(E$32*E150-$D$28*$D$27)*(E$32*E150-$D$28*$D$27)/(4*E151*E$32*$D$27))-0.5*(1+$D$28*E150/E151+$D$28*$D$28*$D$27/E151/E$32)*EXP($D$28*E150/E151)*ERFC((E$32*E150+$D$28*$D$27)/(SQRT(4*E151*E$32*$D$27))) -> 
B151: ↑での分散係数 （固定値） | D151: =$D$29 -> 1.333333333 | E151: 1.333333333 | F151: 1.333333333 | G151: 1.333333333 | H151: 1.333333333 | I151: 1.333333333
B152: x18 (m) | D152: =IF(K150<D$115,D150-ABS(D148-D150)/2,D150+ABS(D148-D150)/2) -> 3.037548065 | E152: =IF(L150<E$115,E150-ABS(E148-E150)/2,E150+ABS(E148-E150)/2) ->  | J152: ←での相対濃度 | K152: =0.5*ERFC((D$32*D152-$D$28*$D$27)/(SQRT(4*D153*D$32*$D$27)))+SQRT($D$28*$D$28*$D$27/(PI()*D153*D$32))*EXP(-(D$32*D152-$D$28*$D$27)*(D$32*D152-$D$28*$D$27)/(4*D153*D$32*$D$27))-0.5*(1+$D$28*D152/D153+$D$28*$D$28*$D$27/D153/D$32)*EXP($D$28*D152/D153)*ERFC((D$32*D152+$D$28*$D$27)/(SQRT(4*D153*D$32*$D$27))) -> 0.3846128592 | L152: =0.5*ERFC((E$32*E152-$D$28*$D$27)/(SQRT(4*E153*E$32*$D$27)))+SQRT($D$28*$D$28*$D$27/(PI()*E153*E$32))*EXP(-(E$32*E152-$D$28*$D$27)*(E$32*E152-$D$28*$D$27)/(4*E153*E$32*$D$27))-0.5*(1+$D$28*E152/E153+$D$28*$D$28*$D$27/E153/E$32)*EXP($D$28*E152/E153)*ERFC((E$32*E152+$D$28*$D$27)/(SQRT(4*E153*E$32*$D$27))) -> 
B153: ↑での分散係数 （固定値） | D153: =$D$29 -> 1.333333333 | E153: 1.333333333 | F153: 1.333333333 | G153: 1.333333333 | H153: 1.333333333 | I153: 1.333333333
B154: x19 (m) | D154: =IF(K152<D$115,D152-ABS(D150-D152)/2,D152+ABS(D150-D152)/2) -> 3.037538528 | E154: =IF(L152<E$115,E152-ABS(E150-E152)/2,E152+ABS(E150-E152)/2) ->  | J154: ←での相対濃度 | K154: =0.5*ERFC((D$32*D154-$D$28*$D$27)/(SQRT(4*D155*D$32*$D$27)))+SQRT($D$28*$D$28*$D$27/(PI()*D155*D$32))*EXP(-(D$32*D154-$D$28*$D$27)*(D$32*D154-$D$28*$D$27)/(4*D155*D$32*$D$27))-0.5*(1+$D$28*D154/D155+$D$28*$D$28*$D$27/D155/D$32)*EXP($D$28*D154/D155)*ERFC((D$32*D154+$D$28*$D$27)/(SQRT(4*D155*D$32*$D$27))) -> 0.3846151895 | L154: =0.5*ERFC((E$32*E154-$D$28*$D$27)/(SQRT(4*E155*E$32*$D$27)))+SQRT($D$28*$D$28*$D$27/(PI()*E155*E$32))*EXP(-(E$32*E154-$D$28*$D$27)*(E$32*E154-$D$28*$D$27)/(4*E155*E$32*$D$27))-0.5*(1+$D$28*E154/E155+$D$28*$D$28*$D$27/E155/E$32)*EXP($D$28*E154/E155)*ERFC((E$32*E154+$D$28*$D$27)/(SQRT(4*E155*E$32*$D$27))) -> 
B155: ↑での分散係数 （固定値） | D155: =$D$29 -> 1.333333333 | E155: 1.333333333 | F155: 1.333333333 | G155: 1.333333333 | H155: 1.333333333 | I155: 1.333333333
B156: x20 (m) | D156: =IF(K154<D$115,D154-ABS(D152-D154)/2,D154+ABS(D152-D154)/2) -> 3.03753376 | E156: =IF(L154<E$115,E154-ABS(E152-E154)/2,E154+ABS(E152-E154)/2) ->  | J156: ←での相対濃度 | K156: =0.5*ERFC((D$32*D156-$D$28*$D$27)/(SQRT(4*D157*D$32*$D$27)))+SQRT($D$28*$D$28*$D$27/(PI()*D157*D$32))*EXP(-(D$32*D156-$D$28*$D$27)*(D$32*D156-$D$28*$D$27)/(4*D157*D$32*$D$27))-0.5*(1+$D$28*D156/D157+$D$28*$D$28*$D$27/D157/D$32)*EXP($D$28*D156/D157)*ERFC((D$32*D156+$D$28*$D$27)/(SQRT(4*D157*D$32*$D$27))) -> 0.3846163546 | L156: =0.5*ERFC((E$32*E156-$D$28*$D$27)/(SQRT(4*E157*E$32*$D$27)))+SQRT($D$28*$D$28*$D$27/(PI()*E157*E$32))*EXP(-(E$32*E156-$D$28*$D$27)*(E$32*E156-$D$28*$D$27)/(4*E157*E$32*$D$27))-0.5*(1+$D$28*E156/E157+$D$28*$D$28*$D$27/E157/E$32)*EXP($D$28*E156/E157)*ERFC((E$32*E156+$D$28*$D$27)/(SQRT(4*E157*E$32*$D$27))) -> 
B157: ↑での分散係数 （固定値） | D157: =$D$29 -> 1.333333333 | E157: 1.333333333 | F157: 1.333333333 | G157: 1.333333333 | H157: 1.333333333 | I157: 1.333333333
D159: タイトル
A160: 濃度プロファイル表示 | D160: =D5 -> 砒素 | E160: ふっ素 | F160: ほう素 | G160: カドミウム | H160: セレン | I160: 六価クロム | K160: =K115 -> 砒素 | L160: =L115 -> ふっ素 | M160: ほう素 | N160: カドミウム | O160: セレン | P160: 六価クロム
B161: 計算層厚max(m) | D161: =$D$3 -> 5 | E161: =$D$3 -> 5 | F161: 5 | G161: 5 | H161: 5 | I161: =$D$3 -> 5
C162: 相対距離 | D162: 距離(m) | E162: 距離(m) | F162: 距離(m) | G162: 距離(m) | H162: 距離(m) | I162: 距離(m) | K162: 濃度(mg/L) | L162: 濃度(mg/L) | M162: 濃度(mg/L) | N162: 濃度(mg/L) | O162: 濃度(mg/L) | P162: 濃度(mg/L)
A163: 凡例 | C163: 0 | D163: =IF(D$57=TRUE,$C163*D$161,NA()) -> 0 | E163: =IF(E$57=TRUE,$C163*E$161,NA()) ->  | J163: ←での濃度 | K163: =D$8*(0.5*ERFC((D$32*D163-$D$28*$D$27)/(SQRT(4*D186*D$32*$D$27)))+SQRT($D$28*$D$28*$D$27/(PI()*D186*D$32))*EXP(-(D$32*D163-$D$28*$D$27)*(D$32*D163-$D$28*$D$27)/(4*D186*D$32*$D$27))-0.5*(1+$D$28*D163/D186+$D$28*$D$28*$D$27/D186/D$32)*EXP($D$28*D163/D186)*ERFC((D$32*D163+$D$28*$D$27)/(SQRT(4*D186*D$32*$D$27)))) -> 0.02514259336 | L163: =E$8*(0.5*ERFC((E$32*E163-$D$28*$D$27)/(SQRT(4*E186*E$32*$D$27)))+SQRT($D$28*$D$28*$D$27/(PI()*E186*E$32))*EXP(-(E$32*E163-$D$28*$D$27)*(E$32*E163-$D$28*$D$27)/(4*E186*E$32*$D$27))-0.5*(1+$D$28*E163/E186+$D$28*$D$28*$D$27/E186/E$32)*EXP($D$28*E163/E186)*ERFC((E$32*E163+$D$28*$D$27)/(SQRT(4*E186*E$32*$D$27)))) ->  | M163: =F$8*(0.5*ERFC((F$32*F163-$D$28*$D$27)/(SQRT(4*F186*F$32*$D$27)))+SQRT($D$28*$D$28*$D$27/(PI()*F186*F$32))*EXP(-(F$32*F163-$D$28*$D$27)*(F$32*F163-$D$28*$D$27)/(4*F186*F$32*$D$27))-0.5*(1+$D$28*F163/F186+$D$28*$D$28*$D$27/F186/F$32)*EXP($D$28*F163/F186)*ERFC((F$32*F163+$D$28*$D$27)/(SQRT(4*F186*F$32*$D$27)))) -> 
A164: 100年後の濃度分布 | C164: =C163+0.05 -> 0.05 | D164: =IF(D$57=TRUE,$C164*D$161,NA()) -> 0.25 | K164: =D$8*(0.5*ERFC((D$32*D164-$D$28*$D$27)/(SQRT(4*D188*D$32*$D$27)))+SQRT($D$28*$D$28*$D$27/(PI()*D188*D$32))*EXP(-(D$32*D164-$D$28*$D$27)*(D$32*D164-$D$28*$D$27)/(4*D188*D$32*$D$27))-0.5*(1+$D$28*D164/D188+$D$28*$D$28*$D$27/D188/D$32)*EXP($D$28*D164/D188)*ERFC((D$32*D164+$D$28*$D$27)/(SQRT(4*D188*D$32*$D$27)))) -> 0.02464738949 | L164: =E$8*(0.5*ERFC((E$32*E164-$D$28*$D$27)/(SQRT(4*E188*E$32*$D$27)))+SQRT($D$28*$D$28*$D$27/(PI()*E188*E$32))*EXP(-(E$32*E164-$D$28*$D$27)*(E$32*E164-$D$28*$D$27)/(4*E188*E$32*$D$27))-0.5*(1+$D$28*E164/E188+$D$28*$D$28*$D$27/E188/E$32)*EXP($D$28*E164/E188)*ERFC((E$32*E164+$D$28*$D$27)/(SQRT(4*E188*E$32*$D$27)))) ->  | M164: =F$8*(0.5*ERFC((F$32*F164-$D$28*$D$27)/(SQRT(4*F188*F$32*$D$27)))+SQRT($D$28*$D$28*$D$27/(PI()*F188*F$32))*EXP(-(F$32*F164-$D$28*$D$27)*(F$32*F164-$D$28*$D$27)/(4*F188*F$32*$D$27))-0.5*(1+$D$28*F164/F188+$D$28*$D$28*$D$27/F188/F$32)*EXP($D$28*F164/F188)*ERFC((F$32*F164+$D$28*$D$27)/(SQRT(4*F188*F$32*$D$27)))) ->  | N164: =G$8*(0.5*ERFC((G$32*G164-$D$28*$D$27)/(SQRT(4*G188*G$32*$D$27)))+SQRT($D$28*$D$28*$D$27/(PI()*G188*G$32))*EXP(-(G$32*G164-$D$28*$D$27)*(G$32*G164-$D$28*$D$27)/(4*G188*G$32*$D$27))-0.5*(1+$D$28*G164/G188+$D$28*$D$28*$D$27/G188/G$32)*EXP($D$28*G164/G188)*ERFC((G$32*G164+$D$28*$D$27)/(SQRT(4*G188*G$32*$D$27)))) ->  | O164: =H$8*(0.5*ERFC((H$32*H164-$D$28*$D$27)/(SQRT(4*H188*H$32*$D$27)))+SQRT($D$28*$D$28*$D$27/(PI()*H188*H$32))*EXP(-(H$32*H164-$D$28*$D$27)*(H$32*H164-$D$28*$D$27)/(4*H188*H$32*$D$27))-0.5*(1+$D$28*H164/H188+$D$28*$D$28*$D$27/H188/H$32)*EXP($D$28*H164/H188)*ERFC((H$32*H164+$D$28*$D$27)/(SQRT(4*H188*H$32*$D$27)))) ->  | P164: =I$8*(0.5*ERFC((I$32*I164-$D$28*$D$27)/(SQRT(4*I188*I$32*$D$27)))+SQRT($D$28*$D$28*$D$27/(PI()*I188*I$32))*EXP(-(I$32*I164-$D$28*$D$27)*(I$32*I164-$D$28*$D$27)/(4*I188*I$32*$D$27))-0.5*(1+$D$28*I164/I188+$D$28*$D$28*$D$27/I188/I$32)*EXP($D$28*I164/I188)*ERFC((I$32*I164+$D$28*$D$27)/(SQRT(4*I188*I$32*$D$27)))) -> 
C165: =C164+0.05 -> 0.1 | D165: 0.5 | K165: 0.02400765603
C166: =C165+0.05 -> 0.15 | D166: 0.75 | K166: 0.02320941713
C167: 0.2 | D167: 1 | K167: 0.02224464144
C168: 0.25 | D168: 1.25 | K168: 0.02111289521
C169: 0.3 | D169: 1.5 | K169: 0.01982248143
C170: 0.35 | D170: 1.75 | K170: 0.0183908517
C171: 0.4 | D171: 2 | K171: 0.01684415672
C172: 0.45 | D172: 2.25 | K172: 0.01521591219
C173: 0.5 | D173: 2.5 | K173: 0.01354488143
C174: 0.55 | D174: 2.75 | K174: 0.01187239204
C175: 0.6 | D175: 3 | K175: 0.01023938967
C176: 0.65 | D176: 3.25 | K176: 0.008683570213
C177: 0.7 | D177: 3.5 | K177: 0.007236915992
C178: 0.75 | D178: 3.75 | K178: 0.005923894705
C179: 0.8 | D179: 4 | K179: 0.004760476049
C180: 0.85 | D180: 4.25 | K180: 0.003754000621
C181: 0.9 | D181: 4.5 | K181: 0.00290382083
C182: 0.95 | D182: 4.75 | K182: 0.002202543503
C183: 1 | D183: 5 | K183: 0.001637650961
C184: ↑での分散係数
D185: 分散係数(m2/yaer) | E185: 分散係数(m2/yaer) | F185: 分散係数(m2/yaer) | G185: 分散係数(m2/yaer) | H185: 分散係数(m2/yaer) | I185: 分散係数(m2/yaer)
D186: =$D$29 -> 1.333333333 | E186: =$D$29 -> 1.333333333 | F186: 1.333333333 | G186: 1.333333333 | H186: 1.333333333 | I186: 1.333333333
D187: =$D$29 -> 1.333333333 | E187: 1.333333333 | F187: 1.333333333 | G187: 1.333333333 | H187: 1.333333333 | I187: 1.333333333
D188: 1.333333333 | E188: 1.333333333 | F188: 1.333333333 | G188: 1.333333333 | H188: 1.333333333 | I188: 1.333333333
D189: 1.333333333 | E189: 1.333333333 | F189: 1.333333333 | G189: 1.333333333 | H189: 1.333333333 | I189: 1.333333333
D190: 1.333333333 | E190: 1.333333333 | F190: 1.333333333 | G190: 1.333333333 | H190: 1.333333333 | I190: 1.333333333
D191: 1.333333333 | E191: 1.333333333 | F191: 1.333333333 | G191: 1.333333333 | H191: 1.333333333 | I191: 1.333333333
D192: 1.333333333 | E192: 1.333333333 | F192: 1.333333333 | G192: 1.333333333 | H192: 1.333333333 | I192: 1.333333333
D193: 1.333333333 | E193: 1.333333333 | F193: 1.333333333 | G193: 1.333333333 | H193: 1.333333333 | I193: 1.333333333
D194: 1.333333333 | E194: 1.333333333 | F194: 1.333333333 | G194: 1.333333333 | H194: 1.333333333 | I194: 1.333333333
D195: 1.333333333 | E195: 1.333333333 | F195: 1.333333333 | G195: 1.333333333 | H195: 1.333333333 | I195: 1.333333333
D196: 1.333333333 | E196: 1.333333333 | F196: 1.333333333 | G196: 1.333333333 | H196: 1.333333333 | I196: 1.333333333
D197: 1.333333333 | E197: 1.333333333 | F197: 1.333333333 | G197: 1.333333333 | H197: 1.333333333 | I197: 1.333333333
D198: 1.333333333 | E198: 1.333333333 | F198: 1.333333333 | G198: 1.333333333 | H198: 1.333333333 | I198: 1.333333333
D199: 1.333333333 | E199: 1.333333333 | F199: 1.333333333 | G199: 1.333333333 | H199: 1.333333333 | I199: 1.333333333
D200: 1.333333333 | E200: 1.333333333 | F200: 1.333333333 | G200: 1.333333333 | H200: 1.333333333 | I200: 1.333333333
D201: 1.333333333 | E201: 1.333333333 | F201: 1.333333333 | G201: 1.333333333 | H201: 1.333333333 | I201: 1.333333333
D202: 1.333333333 | E202: 1.333333333 | F202: 1.333333333 | G202: 1.333333333 | H202: 1.333333333 | I202: 1.333333333
D203: =$D$29 -> 1.333333333 | E203: 1.333333333 | F203: 1.333333333 | G203: 1.333333333 | H203: 1.333333333 | I203: 1.333333333
D204: 1.333333333 | E204: 1.333333333 | F204: 1.333333333 | G204: 1.333333333 | H204: 1.333333333 | I204: 1.333333333
D205: 1.333333333 | E205: 1.333333333 | F205: 1.333333333 | G205: 1.333333333 | H205: 1.333333333 | I205: 1.333333333
D206: 1.333333333 | E206: 1.333333333 | F206: 1.333333333 | G206: 1.333333333 | H206: 1.333333333 | I206: 1.333333333
D207: 1.333333333 | E207: 1.333333333 | F207: 1.333333333 | G207: 1.333333333 | H207: 1.333333333 | I207: 1.333333333
A210: 凡例 | D210: =D5 -> 砒素 | E210: ふっ素 | F210: ほう素 | G210: カドミウム | H210: セレン | I210: 六価クロム | K210: =K115 -> 砒素 | L210: ふっ素 | M210: ほう素 | N210: カドミウム | O210: セレン | P210: 六価クロム
A211: 土壌溶出量基準値 | C211: 距離(m) | D211: =IF(D57=TRUE,0,NA()) -> 0 | E211: =IF(E57=TRUE,0,NA()) ->  | J211: 濃度 (mg/L) | K211: =D11 -> 0.01 | L211: 0.8 | M211: 1 | N211: 0.01 | O211: 0.01 | P211: 0.05
A212: ① | D212: =IF(D57=TRUE,D161/2,NA()) -> 2.5 | E212: =IF(E57=TRUE,E161/2,NA()) ->  | K212: =D11 -> 0.01 | L212: 0.8 | M212: 1 | N212: 0.01 | O212: 0.01 | P212: 0.05
D213: =IF(D57=TRUE,D161,NA()) -> 5 | E213: =IF(E57=TRUE,E161,NA()) ->  | K213: =D11 -> 0.01 | L213: 0.8 | M213: 1 | N213: 0.01 | O213: 0.01 | P213: 0.05
A215: 凡例 | D215: =D5 -> 砒素 | E215: ふっ素 | F215: ほう素 | G215: カドミウム | H215: セレン | I215: 六価クロム | K215: =K115 -> 砒素 | L215: ふっ素 | M215: ほう素 | N215: カドミウム | O215: セレン | P215: 六価クロム
A216: 不飽和層下端 | C216: 距離(m) | D216: =IF(D57=TRUE,$D$3,NA()) -> 5 | E216: =IF(E57=TRUE,$D$3,NA()) ->  | J216: 濃度 (mg/L) | K216: 0 | L216: 0 | M216: 0 | N216: 0 | O216: 0 | P216: 0
A217: ② | D217: =IF(D57=TRUE,$D$3,NA()) -> 5 | E217: =IF(E57=TRUE,$D$3,NA()) ->  | K217: =D8/2 -> 0.013
D218: =IF(D57=TRUE,$D$3,NA()) -> 5 | E218: =IF(E57=TRUE,$D$3,NA()) ->  | K218: =D8 -> 0.026
A220: 凡例 | D220: =D5 -> 砒素 | E220: ふっ素 | F220: ほう素 | G220: カドミウム | H220: セレン | I220: 六価クロム | K220: =K115 -> 砒素 | L220: ふっ素 | M220: ほう素 | N220: カドミウム | O220: セレン | P220: 六価クロム
A221: ③土壌溶出量基準値となる層厚の目安 | C221: 距離(m) | D221: =IFERROR(D226,NA()) ->  | E221: =IFERROR(E226,NA()) ->  | J221: 濃度 (mg/L) | K221: 0 | L221: 0 | M221: 0 | N221: 0 | O221: 0 | P221: 0
A222: ③ | D222: =IFERROR(D227,NA()) ->  | K222: =D8/2 -> 0.013
K223: =D8 -> 0.026
... 2 more rows
